fUST/lending_fUST_20250812
["ID","MTS","AMOUNT","RATE_DAILY","PERIOD"]
[378662432,1754949043953,-460.0,0.00019178,2]
[378662433,1754949043962,-460.0,0.00019178,2]
[378662434,1754949043971,-460.0,0.00019178,2]
[378662435,1754949043980,-901.96,0.00019178,2]
[378662436,1754949043990,-949.9,0.00019178,2]
[378662437,1754949044000,-460.0,0.00019178,2]
[378662438,1754949044009,-460.0,0.00019178,2]
[378662439,1754949044018,-679.12,0.00019178,2]
[378662440,1754949044027,-460.0,0.00019178,2]
[378662441,1754949044036,-460.0,0.00019178,2]
[378662442,1754949044045,-460.0,0.00019178,2]
[378662443,1754949044054,-460.0,0.00019178,2]
[378662444,1754949044064,-486.07,0.00019178,2]
[378662445,1754949044074,-11841.11,0.00019178,2]
[378662446,1754949044083,-634.63,0.00019178,2]
[378662447,1754949044092,-2830.81,0.00019178,2]
[378662449,1754949044101,-460.0,0.00019178,2]
[378662450,1754949044111,-460.0,0.00019178,2]
[378662451,1754949044120,-460.0,0.00019178,2]
[378662452,1754949044129,-460.0,0.00019178,2]
[378662453,1754949044139,-460.0,0.00019178,2]
[378662454,1754949044148,-460.0,0.00019178,2]
[378662455,1754949044157,-587.40314873,0.00019178,2]
[378662456,1754949044167,-460.0,0.00019178,2]
[378662457,1754949044176,-2487.08,0.00019178,2]
[378662458,1754949044186,-528.91288821,0.00019178,2]
[378662459,1754949044378,-460.0,0.00019178,2]
[378662460,1754949044388,-460.0,0.00019178,2]
[378662461,1754949044398,-460.0,0.00019178,2]
[378662462,1754949044407,-460.0,0.00019178,2]
[378662463,1754949044416,-460.0,0.00019178,2]
[378662464,1754949044425,-460.0,0.00019178,2]
[378662465,1754949044435,-310.28503261,0.00019178,2]
[378662466,1754949044448,-149.71496739,0.00019178,2]
[378662467,1754949044457,-423.40433545,0.00019178,2]
[378662468,1754949044466,-460.0,0.00019178,2]
[378662469,1754949044475,-460.0,0.00019178,2]
[378662470,1754949044484,-460.0,0.00019178,2]
[378662471,1754949044493,-460.0,0.00019178,2]
[378662472,1754949044502,-1280.02,0.00019178,2]
[378662473,1754949044511,-2451.38,0.00019178,2]
[378662474,1754949044520,-460.0,0.00019178,2]
[378662475,1754949044530,-502.18,0.00019178,2]
[378662476,1754949044539,-460.0,0.00019178,2]
[378662477,1754949044548,-693.19,0.00019178,2]
[378662478,1754949044558,-460.0,0.00019178,2]
[378662479,1754949044568,-460.0,0.00019178,2]
[378662480,1754949044577,-460.0,0.00019178,2]
[378662481,1754949044587,-590.57021053,0.00019178,2]
[378662482,1754949044596,-460.0,0.00019178,2]
[378662483,1754949044605,-709.29,0.00019178,2]
[378662484,1754949044614,-575.4706325,0.00019178,2]
[378662485,1754949044623,-460.0,0.00019178,2]
[378662486,1754949044632,-460.0,0.00019178,2]
[378662487,1754949044641,-460.0,0.00019178,2]
[378662488,1754949044651,-460.0,0.00019178,2]
[378662489,1754949044660,-460.0,0.00019178,2]
[378662490,1754949044669,-809.31,0.00019178,2]
[378662491,1754949044678,-460.0,0.00019178,2]
[378662492,1754949044687,-630.36,0.00019178,2]
[378662493,1754949044697,-460.0,0.00019178,2]
[378662494,1754949044706,-460.0,0.00019178,2]
[378662495,1754949044715,-460.0,0.00019178,2]
[378662496,1754949044724,-460.0,0.00019178,2]
[378662497,1754949044733,-460.0,0.00019178,2]
[378662498,1754949044743,-795.05,0.00019178,2]
[378662499,1754949044752,-460.0,0.00019178,2]
[378662500,1754949044761,-460.0,0.00019178,2]
[378662501,1754949044770,-1244.72,0.00019178,2]
[378662502,1754949044779,-460.0,0.00019178,2]
[378662503,1754949044787,-648.31,0.00019178,2]
[378662504,1754949044796,-460.0,0.00019178,2]
[378662505,1754949044805,-460.0,0.00019178,2]
[378662506,1754949044816,-460.0,0.00019178,2]
[378662507,1754949044825,-460.0,0.00019178,2]
[378662508,1754949044834,-460.0,0.00019178,2]
[378662509,1754949044844,-460.0,0.00019178,2]
[378662510,1754949044853,-521.48,0.00019178,2]
[378662511,1754949044862,-460.0,0.00019178,2]
[378662512,1754949044872,-460.0,0.00019178,2]
[378662513,1754949044880,-1072.85,0.00019178,2]
[378662514,1754949044890,-460.0,0.00019178,2]
[378662515,1754949044899,-460.0,0.00019178,2]
[378662516,1754949044909,-563.68,0.00019178,2]
[378662517,1754949044918,-919.05,0.00019178,2]
[378662518,1754949044927,-3476.09,0.00019178,2]
[378662519,1754949044936,-460.0,0.00019178,2]
[378662520,1754949044946,-674.14,0.00019178,2]
[378662521,1754949044955,-640.25,0.00019178,2]
[378662522,1754949044965,-607.64036753,0.00019178,2]
[378662523,1754949044974,-460.0,0.00019178,2]
[378662524,1754949044983,-460.0,0.00019178,2]
[378662525,1754949044993,-460.0,0.00019178,2]
[378662526,1754949045002,-460.0,0.00019178,2]
[378662527,1754949045011,-460.0,0.00019178,2]
[378662528,1754949045021,-460.0,0.00019178,2]
[378662529,1754949045030,-460.0,0.00019178,2]
[378662530,1754949045039,-2852.67,0.00019178,2]
[378662531,1754949045049,-460.0,0.00019178,2]
[378662532,1754949045059,-460.0,0.00019178,2]
[378662533,1754949045069,-460.0,0.00019178,2]
[378662534,1754949045079,-532.22,0.00019178,2]
[378662535,1754949045088,-460.0,0.00019178,2]
[378662536,1754949045097,-460.0,0.00019178,2]
[378662537,1754949045107,-460.0,0.00019178,2]
[378662538,1754949045116,-460.0,0.00019178,2]
[378662539,1754949045125,-460.0,0.00019178,2]
[378662540,1754949045135,-645.68,0.00019178,2]
[378662541,1754949045144,-2191.49,0.00019178,2]
[378662542,1754949045153,-460.0,0.00019178,2]
[378662543,1754949045163,-460.0,0.00019178,2]
[378662544,1754949045173,-1027.19,0.00019178,2]
[378662545,1754949045182,-460.0,0.00019178,2]
[378662546,1754949045191,-971.08,0.00019178,2]
[378662547,1754949045200,-1054.43,0.00019178,2]
[378662548,1754949045210,-460.0,0.00019178,2]
[378662549,1754949045219,-1464.81,0.00019178,2]
[378662550,1754949045228,-460.0,0.00019178,2]
[378662551,1754949045237,-608.18,0.00019178,2]
[378662552,1754949045247,-460.0,0.00019178,2]
[378662553,1754949045256,-460.0,0.00019178,2]
[378662554,1754949045265,-460.0,0.00019178,2]
[378662555,1754949045275,-1061.28,0.00019178,2]
[378662556,1754949045284,-1350.33,0.00019178,2]
[378662557,1754949045293,-460.0,0.00019178,2]
[378662558,1754949045303,-460.0,0.00019178,2]
[378662559,1754949045316,-601.87,0.00019178,2]
[378662560,1754949045326,-460.0,0.00019178,2]
[378662561,1754949045335,-1398.47,0.00019178,2]
[378662562,1754949045344,-460.0,0.00019178,2]
[378662563,1754949045354,-1801.14,0.00019178,2]
[378662564,1754949045364,-2093.35,0.00019178,2]
[378662565,1754949045374,-553.8,0.00019178,2]
[378662566,1754949045383,-460.0,0.00019178,2]
[378662567,1754949045393,-460.0,0.00019178,2]
[378662568,1754949045402,-460.0,0.00019178,2]
[378662569,1754949045411,-858.6,0.00019178,2]
[378662570,1754949045421,-460.0,0.00019178,2]
[378662571,1754949045430,-460.0,0.00019178,2]
[378662572,1754949045439,-460.0,0.00019178,2]
[378662573,1754949045448,-460.0,0.00019178,2]
[378662574,1754949045458,-460.0,0.00019178,2]
[378662575,1754949045467,-4121.57,0.00019178,2]
[378662576,1754949045477,-460.0,0.00019178,2]
[378662577,1754949045486,-1153.26,0.00019178,2]
[378662578,1754949045495,-460.0,0.00019178,2]
[378662579,1754949045504,-460.0,0.00019178,2]
[378662580,1754949045513,-460.0,0.00019178,2]
[378662581,1754949045523,-1830.2,0.00019178,2]
[378662582,1754949045532,-498.14,0.00019178,2]
[378662583,1754949045542,-460.0,0.00019178,2]
[378662584,1754949045551,-500.0,0.00019178,2]
[378662585,1754949045561,-494.86,0.00019178,2]
[378662586,1754949045570,-928.25,0.00019178,2]
[378662587,1754949045579,-1059.12,0.00019178,2]
[378662588,1754949045589,-460.0,0.00019178,2]
[378662589,1754949045598,-798.51,0.00019178,2]
[378662590,1754949045607,-460.0,0.00019178,2]
[378662591,1754949045617,-576.45,0.00019178,2]
[378662592,1754949045626,-460.0,0.00019178,2]
[378662593,1754949045635,-521.6,0.00019178,2]
[378662594,1754949045645,-460.0,0.00019178,2]
[378662595,1754949045654,-475.59,0.00019178,2]
[378662596,1754949045663,-460.0,0.00019178,2]
[378662597,1754949045672,-460.0,0.00019178,2]
[378662598,1754949045682,-491.54401979,0.00019178,2]
[378662599,1754949045691,-698.43,0.00019178,2]
[378662600,1754949045700,-1145.36,0.00019178,2]
[378662601,1754949045710,-4236.68,0.00019178,2]
[378662602,1754949045719,-460.0,0.00019178,2]
[378662603,1754949045728,-999.89,0.00019178,2]
[378662604,1754949045738,-460.0,0.00019178,2]
[378662605,1754949045747,-3333.02,0.00019178,2]
[378662606,1754949045757,-525.13,0.00019178,2]
[378662607,1754949045766,-1283.79,0.00019178,2]
[378662608,1754949045775,-460.0,0.00019178,2]
[378662609,1754949045785,-460.0,0.00019178,2]
[378662610,1754949045794,-460.0,0.00019178,2]
[378662611,1754949045803,-232.5585651,0.00019178,2]
[378662612,1754949045813,-460.0,0.00019178,2]
[378662613,1754949045822,-420.0,0.00019178,2]
[378662615,1754949045832,-460.0,0.00019178,2]
[378662616,1754949045841,-768.15,0.00019178,2]
[378662617,1754949045851,-1168.5,0.00019178,2]
[378662618,1754949045860,-460.0,0.00019178,2]
[378662619,1754949045869,-176.61955206,0.00019178,2]
[378662620,1754949045879,-604.33,0.00019178,2]
[378662621,1754949045889,-493.99,0.00019178,2]
[378662622,1754949045898,-460.0,0.00019178,2]
[378662623,1754949045907,-460.0,0.00019178,2]
[378662625,1754949045917,-460.0,0.00019178,2]
[378662627,1754949045926,-460.0,0.00019178,2]
[378662630,1754949045936,-460.0,0.00019178,2]
[378662631,1754949045945,-460.0,0.00019178,2]
[378662632,1754949045954,-570.33,0.00019178,2]
[378662633,1754949045964,-460.0,0.00019178,2]
[378662634,1754949045973,-460.0,0.00019178,2]
[378662636,1754949045983,-2457.03,0.00019178,2]
[378662638,1754949045992,-765.22,0.00019178,2]
[378662639,1754949046002,-460.0,0.00019178,2]
[378662640,1754949046011,-460.0,0.00019178,2]
[378662641,1754949046021,-1032.72,0.00019178,2]
[378662642,1754949046030,-460.0,0.00019178,2]
[378662644,1754949046040,-460.0,0.00019178,2]
[378662646,1754949046050,-747.73,0.00019178,2]
[378662647,1754949046059,-460.0,0.00019178,2]
[378662648,1754949046068,-474.92275701,0.00019178,2]
[378662649,1754949046077,-460.0,0.00019178,2]
[378662650,1754949046087,-1745.28,0.00019178,2]
[378662651,1754949046096,-460.0,0.00019178,2]
[378662652,1754949046105,-1622.82,0.00019178,2]
[378662653,1754949046114,-460.0,0.00019178,2]
[378662654,1754949046124,-4413.33,0.00019178,2]
[378662655,1754949046133,-460.0,0.00019178,2]
[378662656,1754949046142,-1555.15,0.00019178,2]
[378662658,1754949046152,-1260.46,0.00019178,2]
[378662659,1754949046161,-460.0,0.00019178,2]
[378662660,1754949046170,-460.0,0.00019178,2]
[378662661,1754949046180,-2141.94,0.00019178,2]
[378662662,1754949046189,-1002.6,0.00019178,2]
[378662663,1754949046199,-460.0,0.00019178,2]
[378662664,1754949046208,-460.0,0.00019178,2]
[378662666,1754949046218,-460.0,0.00019178,2]
[378662668,1754949046227,-460.0,0.00019178,2]
[378662669,1754949046236,-460.0,0.00019178,2]
[378662671,1754949046246,-460.0,0.00019178,2]
[378662673,1754949046255,-460.0,0.00019178,2]
[378662675,1754949046264,-460.0,0.00019178,2]
[378662676,1754949046274,-460.0,0.00019178,2]
[378662678,1754949046285,-1547.41,0.00019178,2]
[378662680,1754949046296,-460.0,0.00019178,2]
[378662682,1754949046305,-460.0,0.00019178,2]
[378662684,1754949046319,-838.59,0.00019178,2]
[378662685,1754949046328,-2418.39,0.00019178,2]
[378662686,1754949046338,-460.0,0.00019178,2]
[378662687,1754949046348,-683.38,0.00019178,2]
[378662689,1754949046357,-3449.05,0.00019178,2]
[378662690,1754949046366,-465.63,0.00019178,2]
[378662691,1754949046375,-460.0,0.00019178,2]
[378662692,1754949046385,-509.37,0.00019178,2]
[378662693,1754949046395,-460.0,0.00019178,2]
[378662694,1754949046404,-460.0,0.00019178,2]
[378662695,1754949046413,-460.0,0.00019178,2]
[378662696,1754949046422,-666.0,0.00019178,2]
[378662697,1754949046431,-254.22259264,0.00019252,2]
[378662698,1754949046440,-1494.10548287,0.00019352,2]
[378662699,1754949046449,-1000.0,0.00019388,5]
[378662700,1754949046458,-500.0,0.00019451,2]
[378662701,1754949046468,-500.0,0.00019451,2]
[378662702,1754949046478,-500.0,0.00019451,2]
[378662703,1754949046487,-500.0,0.00019451,2]
[378662704,1754949046497,-156.33120063,0.00019451,2]
[378662705,1754949046506,-7473.14450209,0.00019452,2]
[378662706,1754949046515,-460.0,0.00019452,2]
[378662707,1754949046523,-460.0,0.00019452,2]
[378662709,1754949046533,-460.0,0.00019452,2]
[378662710,1754949046542,-460.0,0.00019452,2]
[378662712,1754949046552,-460.0,0.00019452,2]
[378662714,1754949046562,-952.88,0.00019452,2]
[378662715,1754949046571,-460.0,0.00019452,2]
[378662717,1754949046581,-600.94,0.00019452,2]
[378662719,1754949046590,-460.0,0.00019452,2]
[378662721,1754949046599,-460.0,0.00019452,2]
[378662722,1754949046608,-460.0,0.00019452,2]
[378662724,1754949046618,-532.86,0.00019452,2]
[378662726,1754949046627,-591.46,0.00019452,2]
[378662727,1754949046636,-460.0,0.00019452,2]
[378662728,1754949046645,-460.0,0.00019452,2]
[378662729,1754949046654,-518.94,0.00019452,2]
[378662730,1754949046663,-704.94,0.00019452,2]
[378662731,1754949046672,-460.0,0.00019452,2]
[378662732,1754949046681,-460.0,0.00019452,2]
[378662733,1754949046691,-517.5,0.00019452,2]
[378662734,1754949046700,-3389.92,0.00019452,2]
[378662735,1754949046710,-460.0,0.00019452,2]
[378662736,1754949046719,-460.0,0.00019452,2]
[378662737,1754949046728,-626.12,0.00019452,2]
[378662738,1754949046737,-460.0,0.00019452,2]
[378662739,1754949046746,-460.0,0.00019452,2]
[378662740,1754949046755,-460.0,0.00019452,2]
[378662741,1754949046764,-465.19,0.00019452,2]
[378662742,1754949046773,-460.0,0.00019452,2]
[378662743,1754949046782,-460.0,0.00019452,2]
[378662744,1754949046791,-509.98293276,0.00019452,2]
[378662745,1754949046801,-460.0,0.00019452,2]
[378662746,1754949046810,-460.0,0.00019452,2]
[378662747,1754949046819,-743.1,0.00019452,2]
[378662748,1754949046828,-460.0,0.00019452,2]
[378662749,1754949046837,-531.57,0.00019452,2]
[378662750,1754949046846,-460.0,0.00019452,2]
[378662751,1754949046856,-460.0,0.00019452,2]
[378662752,1754949046864,-460.0,0.00019452,2]
[378662753,1754949046874,-460.0,0.00019452,2]
[378662754,1754949046883,-460.0,0.00019452,2]
[378662755,1754949046892,-460.0,0.00019452,2]
[378662756,1754949046901,-460.0,0.00019452,2]
[378662757,1754949046910,-460.0,0.00019452,2]
[378662758,1754949046919,-460.0,0.00019452,2]
[378662759,1754949046928,-460.0,0.00019452,2]
[378662760,1754949046937,-490.97,0.00019452,2]
[378662761,1754949046946,-460.0,0.00019452,2]
[378662762,1754949046956,-460.0,0.00019452,2]
[378662763,1754949046965,-460.0,0.00019452,2]
[378662764,1754949046974,-1165.79,0.00019452,2]
[378662765,1754949046983,-460.0,0.00019452,2]
[378662766,1754949046992,-460.0,0.00019452,2]
[378662767,1754949047001,-901.96,0.00019452,2]
[378662768,1754949047010,-949.9,0.00019452,2]
[378662769,1754949047019,-679.12,0.00019452,2]
[378662770,1754949047028,-460.0,0.00019452,2]
[378662771,1754949047037,-460.0,0.00019452,2]
[378662772,1754949047047,-460.0,0.00019452,2]
[378662773,1754949047056,-486.07,0.00019452,2]
[378662774,1754949047065,-634.63,0.00019452,2]
[378662775,1754949047075,-11841.11,0.00019452,2]
[378662776,1754949047084,-2830.81,0.00019452,2]
[378662777,1754949047093,-460.0,0.00019452,2]
[378662778,1754949047102,-460.0,0.00019452,2]
[378662779,1754949047111,-460.0,0.00019452,2]
[378662780,1754949047120,-2487.08,0.00019452,2]
[378662781,1754949047129,-460.0,0.00019452,2]
[378662782,1754949047139,-460.0,0.00019452,2]
[378662783,1754949047147,-460.0,0.00019452,2]
[378662784,1754949047157,-460.0,0.00019452,2]
[378662785,1754949047166,-460.0,0.00019452,2]
[378662786,1754949047175,-293.12432458,0.00019452,2]
[378662787,1754949047184,-460.0,0.00019452,2]
[378662788,1754949047194,-460.0,0.00019452,2]
[378662789,1754949047203,-460.0,0.00019452,2]
[378662790,1754949047212,-460.0,0.00019452,2]
[378662791,1754949047221,-1280.02,0.00019452,2]
[378662792,1754949047230,-2451.38,0.00019452,2]
[378662793,1754949047240,-460.0,0.00019452,2]
[378662794,1754949047249,-502.18,0.00019452,2]
[378662795,1754949047258,-460.0,0.00019452,2]
[378662796,1754949047268,-693.19,0.00019452,2]
[378662797,1754949047277,-460.0,0.00019452,2]
[378662798,1754949047286,-709.29,0.00019452,2]
[378662799,1754949047295,-460.0,0.00019452,2]
[378662800,1754949047305,-460.0,0.00019452,2]
[378662801,1754949047317,-460.0,0.00019452,2]
[378662802,1754949047327,-460.0,0.00019452,2]
[378662803,1754949047336,-809.31,0.00019452,2]
[378662804,1754949047345,-460.0,0.00019452,2]
[378662805,1754949047354,-630.36,0.00019452,2]
[378662806,1754949047363,-460.0,0.00019452,2]
[378662807,1754949047372,-460.0,0.00019452,2]
[378662808,1754949047383,-460.0,0.00019452,2]
[378662809,1754949047392,-795.05,0.00019452,2]
[378662810,1754949047401,-460.0,0.00019452,2]
[378662811,1754949047410,-1244.72,0.00019452,2]
[378662812,1754949047420,-460.0,0.00019452,2]
[378662813,1754949047429,-648.31,0.00019452,2]
[378662814,1754949047438,-460.0,0.00019452,2]
[378662815,1754949047446,-460.0,0.00019452,2]
[378662816,1754949047455,-460.0,0.00019452,2]
[378662817,1754949047465,-521.48,0.00019452,2]
[378662818,1754949047474,-460.0,0.00019452,2]
[378662819,1754949047484,-533.79313914,0.00019452,2]
[378662820,1754949047494,-1072.85,0.00019452,2]
[378662821,1754949047503,-460.0,0.00019452,2]
[378662822,1754949047512,-460.0,0.00019452,2]
[378662823,1754949047521,-563.68,0.00019452,2]
[378662824,1754949047530,-919.05,0.00019452,2]
[378662825,1754949047539,-3476.09,0.00019452,2]
[378662826,1754949047548,-460.0,0.00019452,2]
[378662827,1754949047558,-674.14,0.00019452,2]
[378662828,1754949047568,-640.25,0.00019452,2]
[378662829,1754949047577,-460.0,0.00019452,2]
[378662830,1754949047586,-390.63891836,0.00019452,2]
[378662831,1754949047596,-460.0,0.00019452,2]
[378662832,1754949047605,-460.0,0.00019452,2]
[378662833,1754949047614,-460.0,0.00019452,2]
[378662834,1754949047623,-2852.67,0.00019452,2]
[378662835,1754949047632,-460.0,0.00019452,2]
[378662836,1754949047642,-460.0,0.00019452,2]
[378662837,1754949047651,-532.22,0.00019452,2]
[378662838,1754949047660,-460.0,0.00019452,2]
[378662839,1754949047669,-460.0,0.00019452,2]
[378662840,1754949047678,-645.68,0.00019452,2]
[378662841,1754949047688,-2191.49,0.00019452,2]
[378662842,1754949047697,-460.0,0.00019452,2]
[378662843,1754949047707,-460.0,0.00019452,2]
[378662844,1754949047716,-1027.19,0.00019452,2]
[378662845,1754949047725,-460.0,0.00019452,2]
[378662846,1754949047734,-971.08,0.00019452,2]
[378662847,1754949047744,-1054.43,0.00019452,2]
[378662848,1754949047753,-460.0,0.00019452,2]
[378662849,1754949047762,-1464.81,0.00019452,2]
[378662850,1754949047772,-460.0,0.00019452,2]
[378662851,1754949047781,-608.18,0.00019452,2]
[378662852,1754949047790,-460.0,0.00019452,2]
[378662853,1754949047799,-460.0,0.00019452,2]
[378662854,1754949047809,-1061.28,0.00019452,2]
[378662855,1754949047818,-1350.33,0.00019452,2]
[378662856,1754949047827,-460.0,0.00019452,2]
[378662857,1754949047836,-460.0,0.00019452,2]
[378662858,1754949047845,-601.87,0.00019452,2]
[378662859,1754949047854,-460.0,0.00019452,2]
[378662860,1754949047863,-1398.47,0.00019452,2]
[378662861,1754949047872,-460.0,0.00019452,2]
[378662862,1754949047881,-1801.14,0.00019452,2]
[378662863,1754949047890,-2093.35,0.00019452,2]
[378662864,1754949047899,-553.8,0.00019452,2]
[378662865,1754949047908,-460.0,0.00019452,2]
[378662866,1754949047917,-460.0,0.00019452,2]
[378662867,1754949047926,-582.18856313,0.00019452,2]
[378662868,1754949047935,-858.6,0.00019452,2]
[378662869,1754949047944,-460.0,0.00019452,2]
[378662870,1754949047954,-460.0,0.00019452,2]
[378662871,1754949047963,-460.0,0.00019452,2]
[378662872,1754949047972,-4121.57,0.00019452,2]
[378662873,1754949047981,-460.0,0.00019452,2]
[378662874,1754949047990,-1153.26,0.00019452,2]
[378662875,1754949047999,-460.0,0.00019452,2]
[378662876,1754949048008,-460.0,0.00019452,2]
[378662877,1754949048018,-460.0,0.00019452,2]
[378662878,1754949048027,-1830.2,0.00019452,2]
[378662879,1754949048036,-498.14,0.00019452,2]
[378662880,1754949048045,-460.0,0.00019452,2]
[378662881,1754949048055,-494.86,0.00019452,2]
[378662882,1754949048064,-928.25,0.00019452,2]
[378662883,1754949048073,-1059.12,0.00019452,2]
[378662884,1754949048082,-460.0,0.00019452,2]
[378662885,1754949048091,-798.51,0.00019452,2]
[378662886,1754949048101,-460.0,0.00019452,2]
[378662887,1754949048110,-576.45,0.00019452,2]
[378662888,1754949048120,-460.0,0.00019452,2]
[378662889,1754949048129,-521.6,0.00019452,2]
[378662890,1754949048138,-475.59,0.00019452,2]
[378662891,1754949048148,-460.0,0.00019452,2]
[378662892,1754949048158,-460.0,0.00019452,2]
[378662893,1754949048167,-698.43,0.00019452,2]
[378662894,1754949048177,-1145.36,0.00019452,2]
[378662895,1754949048186,-4236.68,0.00019452,2]
[378662896,1754949048196,-460.0,0.00019452,2]
[378662897,1754949048206,-999.89,0.00019452,2]
[378662898,1754949048215,-3333.02,0.00019452,2]
[378662899,1754949048225,-525.13,0.00019452,2]
[378662900,1754949048234,-1283.79,0.00019452,2]
[378662901,1754949048243,-460.0,0.00019452,2]
[378662902,1754949048252,-460.0,0.00019452,2]
[378662903,1754949048262,-460.0,0.00019452,2]
[378662904,1754949048272,-460.0,0.00019452,2]
[378662905,1754949048452,-768.15,0.00019452,2]
[378662906,1754949048463,-1168.5,0.00019452,2]
[378662907,1754949048472,-460.0,0.00019452,2]
[378662908,1754949048483,-493.99,0.00019452,2]
[378662909,1754949048492,-604.33,0.00019452,2]
[378662910,1754949048501,-460.0,0.00019452,2]
[378662911,1754949048511,-460.0,0.00019452,2]
[378662912,1754949048521,-460.0,0.00019452,2]
[378662913,1754949048530,-570.33,0.00019452,2]
[378662914,1754949048540,-460.0,0.00019452,2]
[378662915,1754949048549,-460.0,0.00019452,2]
[378662916,1754949048559,-2457.03,0.00019452,2]
[378662917,1754949048570,-765.22,0.00019452,2]
[378662918,1754949048579,-460.0,0.00019452,2]
[378662919,1754949048589,-1032.72,0.00019452,2]
[378662920,1754949048599,-460.0,0.00019452,2]
[378662921,1754949048609,-747.73,0.00019452,2]
[378662922,1754949048618,-460.0,0.00019452,2]
[378662923,1754949048628,-460.0,0.00019452,2]
[378662924,1754949048638,-1745.28,0.00019452,2]
[378662925,1754949048647,-1622.82,0.00019452,2]
[378662926,1754949048658,-460.0,0.00019452,2]
[378662927,1754949048667,-4413.33,0.00019452,2]
[378662928,1754949048677,-460.0,0.00019452,2]
[378662929,1754949048687,-1555.15,0.00019452,2]
[378662930,1754949048696,-1260.46,0.00019452,2]
[378662931,1754949048705,-460.0,0.00019452,2]
[378662932,1754949048715,-2141.94,0.00019452,2]
[378662933,1754949048724,-1002.6,0.00019452,2]
[378662934,1754949048733,-460.0,0.00019452,2]
[378662935,1754949048743,-460.0,0.00019452,2]
[378662936,1754949048752,-460.0,0.00019452,2]
[378662937,1754949048762,-460.0,0.00019452,2]
[378662938,1754949048772,-312.15287484,0.00019452,2]
[378662939,1754949048781,-460.0,0.00019452,2]
[378662940,1754949048792,-460.0,0.00019452,2]
[378662941,1754949048802,-460.0,0.00019452,2]
[378662942,1754949048813,-460.0,0.00019452,2]
[378662943,1754949048822,-1547.41,0.00019452,2]
[378662944,1754949048832,-460.0,0.00019452,2]
[378662945,1754949048841,-460.0,0.00019452,2]
[378662946,1754949048851,-838.59,0.00019452,2]
[378662947,1754949048861,-2418.39,0.00019452,2]
[378662948,1754949048870,-460.0,0.00019452,2]
[378662949,1754949048880,-683.38,0.00019452,2]
[378662950,1754949048890,-3449.05,0.00019452,2]
[378662951,1754949048899,-465.63,0.00019452,2]
[378662952,1754949048909,-460.0,0.00019452,2]
[378662953,1754949048918,-509.37,0.00019452,2]
[378662954,1754949048927,-460.0,0.00019452,2]
[378662955,1754949048937,-460.0,0.00019452,2]
[378662956,1754949048947,-12671.21867243,0.00019469,2]
[378662957,1754949048956,-843.18994796,0.00019469,2]
[378662958,1754949048966,-160.0,0.00019469,2]
[378662959,1754949048976,-417.15472785,0.00019469,2]
[378662960,1754949048985,-160.0,0.00019469,2]